fUSD/lending_fUSD_20250211
["ID","MTS","AMOUNT","RATE_DAILY","PERIOD"]
[352735915,1739283069814,-564.18,0.00011369,2]
[352735916,1739283069823,-500.0,0.00011369,2]
[352735917,1739283069832,-500.0,0.00011369,2]
[352735918,1739283069841,-500.0,0.00011369,2]
[352735919,1739283069850,-562.5,0.00011369,2]
[352735920,1739283069859,-726.26,0.00011369,2]
[352735921,1739283069868,-500.0,0.00011369,2]
[352735922,1739283069878,-500.0,0.00011369,2]
[352735923,1739283069887,-500.0,0.00011369,2]
[352735924,1739283069897,-500.0,0.00011369,2]
[352735925,1739283069907,-500.0,0.00011369,2]
[352735926,1739283069916,-500.0,0.00011369,2]
[352735927,1739283069926,-500.0,0.00011369,2]
[352735928,1739283069935,-500.0,0.00011369,2]
[352735929,1739283069944,-500.0,0.00011369,2]
[352735930,1739283069954,-657.71,0.00011369,2]
[352735931,1739283069963,-500.0,0.00011369,2]
[352735932,1739283069973,-545.49,0.00011369,2]
[352735933,1739283069982,-500.0,0.00011369,2]
[352735934,1739283069991,-947.55,0.00011369,2]
[352735935,1739283070000,-500.0,0.00011369,2]
[352735936,1739283070010,-515.37,0.00011369,2]
[352735937,1739283070019,-500.0,0.00011369,2]
[352735938,1739283070028,-500.0,0.00011369,2]
[352735939,1739283070037,-500.0,0.00011369,2]
[352735940,1739283070048,-500.0,0.00011369,2]
[352735941,1739283070058,-500.0,0.00011369,2]
[352735942,1739283070067,-500.0,0.00011369,2]
[352735943,1739283070077,-500.0,0.00011369,2]
[352735944,1739283070086,-500.0,0.00011369,2]
[352735945,1739283070095,-500.0,0.00011369,2]
[352735946,1739283070104,-500.0,0.00011369,2]
[352735947,1739283070113,-791.02,0.00011369,2]
[352735948,1739283070122,-594.78,0.00011369,2]
[352735949,1739283070132,-405.36660524,0.00011369,2]
[352735950,1739283070141,-500.0,0.00011369,2]
[352735951,1739283070150,-899.13,0.00011369,2]
[352735952,1739283070159,-500.0,0.00011369,2]
[352735953,1739283070168,-500.0,0.00011369,2]
[352735954,1739283070177,-723.56,0.00011369,2]
[352735955,1739283070186,-500.0,0.00011369,2]
[352735956,1739283070195,-623.3,0.00011369,2]
[352735957,1739283070205,-500.0,0.00011369,2]
[352735958,1739283070214,-500.0,0.00011369,2]
[352735959,1739283070223,-500.0,0.00011369,2]
[352735960,1739283070233,-500.0,0.00011369,2]
[352735961,1739283070242,-522.23268038,0.00011369,2]
[352735962,1739283070251,-602.04,0.00011369,2]
[352735963,1739283070260,-500.0,0.00011369,2]
[352735964,1739283070270,-634.43,0.00011369,2]
[352735965,1739283070279,-500.0,0.00011369,2]
[352735966,1739283070289,-689.47,0.00011369,2]
[352735967,1739283070301,-500.0,0.00011369,2]
[352735968,1739283070310,-500.0,0.00011369,2]
[352735969,1739283070320,-500.0,0.00011369,2]
[352735970,1739283070329,-500.0,0.00011369,2]
[352735971,1739283070339,-500.0,0.00011369,2]
[352735972,1739283070349,-500.0,0.00011369,2]
[352735973,1739283070358,-500.0,0.00011369,2]
[352735974,1739283070372,-500.0,0.00011369,2]
[352735975,1739283070382,-999.07,0.00011369,2]
[352735976,1739283070391,-500.0,0.00011369,2]
[352735977,1739283070400,-961.83,0.00011369,2]
[352735978,1739283070410,-500.0,0.00011369,2]
[352735979,1739283070419,-932.98,0.00011369,2]
[352735980,1739283070428,-500.0,0.00011369,2]
[352735981,1739283070437,-500.0,0.00011369,2]
[352735982,1739283070447,-662.81,0.00011369,2]
[352735983,1739283070456,-500.0,0.00011369,2]
[352735984,1739283070465,-500.0,0.00011369,2]
[352735985,1739283070475,-541.66,0.00011369,2]
[352735986,1739283070484,-722.67,0.00011369,2]
[352735987,1739283070493,-500.0,0.00011369,2]
[352735988,1739283070502,-500.0,0.00011369,2]
[352735989,1739283070512,-500.0,0.00011369,2]
[352735990,1739283070521,-234.11780231,0.00011369,2]
[352735991,1739283070530,-500.0,0.00011369,2]
[352735992,1739283070540,-378.35989729,0.00011369,2]
[352735993,1739283070552,-500.0,0.00011369,2]
[352735994,1739283070561,-500.0,0.00011369,2]
[352735995,1739283070570,-1030.45,0.00011369,2]
[352735996,1739283070579,-500.0,0.00011369,2]
[352735997,1739283070589,-500.0,0.00011369,2]
[352735998,1739283070598,-500.0,0.00011369,2]
[352735999,1739283070608,-500.0,0.00011369,2]
[352736000,1739283070619,-835.87,0.00011369,2]
[352736001,1739283070632,-750.85,0.00011369,2]
[352736002,1739283070641,-500.0,0.00011369,2]
[352736003,1739283070651,-500.0,0.00011369,2]
[352736004,1739283070662,-500.0,0.00011369,2]
[352736005,1739283070672,-500.0,0.00011369,2]
[352736006,1739283070681,-500.0,0.00011369,2]
[352736007,1739283070690,-500.0,0.00011369,2]
[352736008,1739283070700,-500.0,0.00011369,2]
[352736009,1739283070710,-500.0,0.00011369,2]
[352736010,1739283070720,-500.0,0.00011369,2]
[352736011,1739283070729,-500.0,0.00011369,2]
[352736012,1739283070738,-500.0,0.00011369,2]
[352736013,1739283070748,-500.0,0.00011369,2]
[352736014,1739283070757,-500.0,0.00011369,2]
[352736015,1739283070766,-500.0,0.00011369,2]
[352736016,1739283070775,-500.0,0.00011369,2]
[352736017,1739283070784,-1038.04,0.00011369,2]
[352736018,1739283070794,-655.85,0.00011369,2]
[352736019,1739283070805,-500.0,0.00011369,2]
[352736020,1739283070819,-500.0,0.00011369,2]
[352736021,1739283070836,-500.0,0.00011369,2]
[352736022,1739283070846,-500.0,0.00011369,2]
[352736023,1739283070855,-626.7,0.00011369,2]
[352736024,1739283070864,-500.0,0.00011369,2]
[352736025,1739283070874,-500.0,0.00011369,2]
[352736026,1739283070884,-500.0,0.00011369,2]
[352736027,1739283070893,-581.18,0.00011369,2]
[352736028,1739283070903,-650.34,0.00011369,2]
[352736029,1739283070912,-500.0,0.00011369,2]
[352736030,1739283070922,-500.0,0.00011369,2]
[352736031,1739283070931,-500.0,0.00011369,2]
[352736032,1739283070941,-500.0,0.00011369,2]
[352736033,1739283070950,-557.62,0.00011369,2]
[352736034,1739283070959,-500.0,0.00011369,2]
[352736035,1739283070969,-1181.79,0.00011369,2]
[352736036,1739283070978,-552.27,0.00011369,2]
[352736037,1739283070988,-982.11,0.00011369,2]
[352736038,1739283070997,-500.0,0.00011369,2]
[352736039,1739283071007,-637.32,0.00011369,2]
[352736040,1739283071167,-501.29706162,0.00011369,2]
[352736041,1739283071177,-500.0,0.00011369,2]
[352736042,1739283071187,-500.0,0.00011369,2]
[352736043,1739283071196,-500.0,0.00011369,2]
[352736044,1739283071205,-500.0,0.00011369,2]
[352736045,1739283071215,-500.0,0.00011369,2]
[352736046,1739283071224,-500.0,0.00011369,2]
[352736047,1739283071233,-621.63,0.00011369,2]
[352736048,1739283071243,-720.74,0.00011369,2]
[352736049,1739283071252,-500.0,0.00011369,2]
[352736050,1739283071261,-756.12,0.00011369,2]
[352736051,1739283071271,-500.0,0.00011369,2]
[352736052,1739283071280,-500.0,0.00011369,2]
[352736053,1739283071290,-540.21,0.00011369,2]
[352736054,1739283071303,-500.0,0.00011369,2]
[352736055,1739283071314,-500.0,0.00011369,2]
[352736056,1739283071323,-500.0,0.00011369,2]
[352736057,1739283071333,-500.0,0.00011369,2]
[352736058,1739283071343,-500.0,0.00011369,2]
[352736059,1739283071353,-626.80782833,0.00011369,2]
[352736060,1739283071363,-623.01911741,0.00011369,2]
[352736061,1739283071374,-1099.61,0.00011369,2]
[352736062,1739283071384,-543.05,0.00011369,2]
[352736063,1739283071394,-735.96,0.00011369,2]
[352736064,1739283071404,-1136.7,0.00011369,2]
[352736065,1739283071414,-500.0,0.00011369,2]
[352736066,1739283071424,-500.0,0.00011369,2]
[352736067,1739283071434,-500.0,0.00011369,2]
[352736068,1739283071443,-500.0,0.00011369,2]
[352736069,1739283071453,-500.0,0.00011369,2]
[352736070,1739283071463,-875.16,0.00011369,2]
[352736071,1739283071472,-500.0,0.00011369,2]
[352736072,1739283071482,-500.0,0.00011369,2]
[352736073,1739283071492,-580.72,0.00011369,2]
[352736074,1739283071502,-500.0,0.00011369,2]
[352736075,1739283071511,-500.0,0.00011369,2]
[352736076,1739283071521,-500.0,0.00011369,2]
[352736077,1739283071530,-1187.47,0.00011369,2]
[352736078,1739283071543,-305.71605264,0.00011369,2]
[352736079,1739283071559,-1053.93,0.00011369,2]
[352736080,1739283071569,-635.88,0.00011369,2]
[352736081,1739283071579,-1017.56,0.00011369,2]
[352736082,1739283071589,-683.09,0.00011369,2]
[352736083,1739283071598,-1174.81,0.00011369,2]
[352736084,1739283071607,-500.0,0.00011369,2]
[352736085,1739283071621,-500.0,0.00011369,2]
[352736086,1739283071633,-500.0,0.00011369,2]
[352736087,1739283071642,-641.21,0.00011369,2]
[352736088,1739283071651,-515.4,0.00011369,2]
[352736089,1739283071663,-500.0,0.00011369,2]
[352736090,1739283071673,-811.4,0.00011369,2]
[352736091,1739283071683,-500.0,0.00011369,2]
[352736092,1739283071692,-500.0,0.00011369,2]
[352736093,1739283071701,-2279.79,0.00011369,2]
[352736094,1739283071711,-500.0,0.00011369,2]
[352736095,1739283071721,-500.0,0.00011369,2]
[352736096,1739283071730,-500.0,0.00011369,2]
[352736097,1739283071739,-1026.36,0.00011369,2]
[352736098,1739283071749,-500.0,0.00011369,2]
[352736099,1739283071758,-500.0,0.00011369,2]
[352736100,1739283071767,-500.0,0.00011369,2]
[352736101,1739283071776,-544.63,0.00011369,2]
[352736102,1739283071786,-1181.86,0.00011369,2]
[352736103,1739283071799,-500.0,0.00011369,2]
[352736104,1739283071808,-500.0,0.00011369,2]
[352736105,1739283071817,-678.67,0.00011369,2]
[352736106,1739283071827,-500.0,0.00011369,2]
[352736107,1739283071837,-500.0,0.00011369,2]
[352736108,1739283071847,-500.0,0.00011369,2]
[352736109,1739283071857,-500.0,0.00011369,2]
[352736110,1739283071866,-1235.55,0.00011369,2]
[352736111,1739283071876,-2015.94,0.00011369,2]
[352736112,1739283071885,-500.0,0.00011369,2]
[352736113,1739283071894,-500.0,0.00011369,2]
[352736114,1739283071903,-500.0,0.00011369,2]
[352736115,1739283071912,-638.72,0.00011369,2]
[352736116,1739283071922,-500.0,0.00011369,2]
[352736117,1739283071931,-500.0,0.00011369,2]
[352736118,1739283071941,-500.0,0.00011369,2]
[352736119,1739283071951,-500.0,0.00011369,2]
[352736120,1739283071961,-884.07,0.00011369,2]
[352736121,1739283071970,-1344.05,0.00011369,2]
[352736122,1739283071980,-500.0,0.00011369,2]
[352736123,1739283071990,-500.0,0.00011369,2]
[352736124,1739283072000,-500.0,0.00011369,2]
[352736125,1739283072010,-157.862353,0.00011369,2]
[352736126,1739283072020,-1667.76,0.00011369,2]
[352736127,1739283072029,-500.0,0.00011369,2]
[352736128,1739283072039,-515.7,0.00011369,2]
[352736129,1739283072052,-522.2,0.00011369,2]
[352736130,1739283072062,-500.0,0.00011369,2]
[352736131,1739283072072,-1113.72,0.00011369,2]
[352736132,1739283072082,-502.26741004,0.00011369,2]
[352736133,1739283072092,-757.59,0.00011369,2]
[352736134,1739283072101,-500.0,0.00011369,2]
[352736135,1739283072111,-1179.03,0.00011369,2]
[352736136,1739283072120,-169.457292,0.00011369,2]
[352736137,1739283072129,-808.33,0.00011369,2]
[352736138,1739283072139,-1282.85,0.00011369,2]
[352736139,1739283072148,-500.0,0.00011369,2]
[352736140,1739283072158,-1795.37,0.00011369,2]
[352736141,1739283072167,-1850.76,0.00011369,2]
[352736142,1739283072177,-603.62,0.00011369,2]
[352736143,1739283072186,-500.0,0.00011369,2]
[352736144,1739283072196,-500.0,0.00011369,2]
[352736145,1739283072205,-500.0,0.00011369,2]
[352736146,1739283072215,-500.0,0.00011369,2]
[352736147,1739283072224,-1151.05,0.00011369,2]
[352736148,1739283072234,-1119.24,0.00011369,2]
[352736149,1739283072243,-500.0,0.00011369,2]
[352736150,1739283072252,-1347.78,0.00011369,2]
[352736151,1739283072262,-500.0,0.00011369,2]
[352736152,1739283072271,-819.33,0.00011369,2]
[352736153,1739283072280,-1536.44,0.00011369,2]
[352736154,1739283072289,-500.0,0.00011369,2]
[352736155,1739283072301,-892.03,0.00011369,2]
[352736156,1739283072310,-500.0,0.00011369,2]
[352736157,1739283072319,-500.0,0.00011369,2]
[352736158,1739283072328,-2017.38,0.00011369,2]
[352736159,1739283072338,-948.75,0.00011369,2]
[352736160,1739283072347,-500.0,0.00011369,2]
[352736161,1739283072357,-526.05,0.00011369,2]
[352736162,1739283072366,-470.44835784,0.00011369,2]
[352736163,1739283072375,-582.46,0.00011369,2]
[352736164,1739283072384,-683.75,0.00011369,2]
[352736165,1739283072393,-657.71,0.00011369,2]
[352736166,1739283072402,-500.0,0.00011369,2]
[352736167,1739283072411,-2105.16,0.00011369,2]
[352736168,1739283072420,-1725.88,0.00011369,2]
[352736169,1739283072429,-500.0,0.00011369,2]
[352736170,1739283072438,-500.0,0.00011369,2]
[352736171,1739283072448,-500.0,0.00011369,2]
[352736172,1739283072457,-634.23,0.00011369,2]
[352736173,1739283072466,-500.0,0.00011369,2]
[352736174,1739283072476,-1375.79,0.00011369,2]
[352736175,1739283072484,-500.0,0.00011369,2]
[352736176,1739283072494,-566.40084152,0.00011369,2]
[352736177,1739283072503,-500.0,0.00011369,2]
[352736178,1739283072512,-582.27,0.00011369,2]
[352736179,1739283072521,-1848.33,0.00011369,2]
[352736180,1739283072531,-500.0,0.00011369,2]
[352736181,1739283072540,-853.65,0.00011369,2]
[352736182,1739283072550,-367.56634373,0.00011369,2]
[352736183,1739283072560,-500.0,0.00011369,2]
[352736184,1739283072569,-1602.84,0.00011369,2]
[352736185,1739283072578,-500.0,0.00011369,2]
[352736186,1739283072588,-1126.45,0.00011369,2]
[352736187,1739283072598,-500.0,0.00011369,2]
[352736188,1739283072607,-500.0,0.00011369,2]
[352736189,1739283072623,-1623.28,0.00011369,2]
[352736190,1739283072632,-1427.46,0.00011369,2]
[352736191,1739283072641,-1095.96,0.00011369,2]
[352736192,1739283072651,-1955.0,0.00011369,2]
[352736193,1739283072661,-733.7,0.00011369,2]
[352736194,1739283072670,-500.0,0.00011369,2]
[352736195,1739283072680,-1200.0,0.00011369,2]
[352736196,1739283072688,-507.93,0.00011369,2]
[352736197,1739283072698,-636.24,0.00011369,2]
[352736198,1739283072709,-1892.51,0.00011369,2]
[352736199,1739283072718,-500.0,0.00011369,2]
[352736200,1739283072727,-1207.29,0.00011369,2]
[352736201,1739283072736,-523.88285067,0.00011369,2]
[352736202,1739283072746,-1791.03,0.00011369,2]
[352736203,1739283072755,-1757.72,0.00011369,2]
[352736204,1739283072765,-500.0,0.00011369,2]
[352736205,1739283072774,-500.0,0.00011369,2]
[352736206,1739283072783,-1102.03,0.00011369,2]
[352736207,1739283072793,-500.0,0.00011369,2]
[352736208,1739283072806,-151.0,0.00011369,2]
[352736209,1739283072815,-2171.34,0.00011369,2]
[352736210,1739283072826,-713.64,0.00011369,2]
[352736211,1739283072835,-500.0,0.00011369,2]
[352736212,1739283072845,-4488.97,0.00011369,2]
[352736213,1739283072854,-500.0,0.00011369,2]
[352736214,1739283072863,-1078.79,0.00011369,2]
[352736215,1739283072873,-1189.98,0.00011369,2]
[352736216,1739283072882,-2231.76,0.00011369,2]
[352736217,1739283072892,-3213.91,0.00011369,2]
[352736218,1739283072903,-416.95487927,0.00011369,2]
[352736219,1739283072912,-500.0,0.00011369,2]
[352736220,1739283072922,-500.0,0.00011369,2]
[352736221,1739283072932,-1985.57,0.00011369,2]
[352736222,1739283072942,-500.0,0.00011369,2]
[352736223,1739283072952,-500.0,0.00011369,2]
[352736224,1739283072962,-2233.07,0.00011369,2]
[352736225,1739283072971,-2042.81,0.00011369,2]
[352736226,1739283072981,-500.0,0.00011369,2]
[352736227,1739283072990,-1475.61,0.00011369,2]
[352736228,1739283073000,-500.0,0.00011369,2]
[352736229,1739283073010,-500.0,0.00011369,2]
[352736230,1739283073020,-810.69,0.00011369,2]
[352736231,1739283073030,-500.0,0.00011369,2]
[352736232,1739283073041,-500.0,0.00011369,2]
[352736233,1739283073051,-2371.13,0.00011369,2]
[352736234,1739283073060,-700.09,0.00011369,2]
[352736235,1739283073070,-1214.76,0.00011369,2]
[352736236,1739283073080,-2171.63,0.00011369,2]
[352736237,1739283073089,-2387.02,0.00011369,2]
[352736238,1739283073098,-620.08,0.00011369,2]
[352736239,1739283073108,-500.0,0.00011369,2]
[352736240,1739283073118,-2310.94,0.00011369,2]
[352736241,1739283073128,-2340.95,0.00011369,2]
[352736242,1739283073138,-500.0,0.00011369,2]
[352736243,1739283073148,-1886.51,0.00011369,2]
[352736244,1739283073158,-5444.75,0.00011369,2]
[352736245,1739283073168,-2886.17,0.00011369,2]
[352736246,1739283073177,-500.0,0.00011369,2]
[352736247,1739283073187,-727.8,0.00011369,2]
[352736248,1739283073196,-707.04,0.00011369,2]
[352736249,1739283073205,-500.0,0.00011369,2]
[352736250,1739283073215,-2343.44,0.00011369,2]
[352736251,1739283073225,-500.0,0.00011369,2]
[352736252,1739283073235,-500.0,0.00011369,2]
[352736253,1739283073245,-937.33,0.00011369,2]
[352736254,1739283073254,-1158.26,0.00011369,2]
[352736255,1739283073264,-500.0,0.00011369,2]
[352736256,1739283073273,-670.35,0.00011369,2]
[352736257,1739283073282,-500.0,0.00011369,2]
[352736258,1739283073291,-2558.39,0.00011369,2]
[352736259,1739283073302,-620.78,0.00011369,2]
[352736260,1739283073311,-2007.68,0.00011369,2]
[352736261,1739283073320,-2648.76,0.00011369,2]
[352736262,1739283073329,-2171.75,0.00011369,2]
[352736263,1739283073339,-2434.45,0.00011369,2]
[352736264,1739283073348,-500.0,0.00011369,2]
[352736265,1739283073357,-731.57,0.00011369,2]
[352736266,1739283073367,-2583.49,0.00011369,2]
[352736267,1739283073376,-2031.5,0.00011369,2]
[352736268,1739283073385,-500.0,0.00011369,2]
[352736269,1739283073395,-151.0,0.00011369,2]
[352736270,1739283073404,-3062.38,0.00011369,2]
[352736271,1739283073413,-500.0,0.00011369,2]
[352736272,1739283073422,-1845.16,0.00011369,2]
[352736273,1739283073431,-574.17500961,0.00011369,2]
[352736274,1739283073441,-3061.99,0.00011369,2]
[352736275,1739283073450,-2068.15,0.00011369,2]
[352736276,1739283073459,-151.0,0.00011369,2]
[352736277,1739283073468,-1009.34,0.00011369,2]
[352736278,1739283073477,-2900.54,0.00011369,2]
[352736279,1739283073486,-500.0,0.00011369,2]
[352736280,1739283073495,-2626.43,0.00011369,2]
[352736281,1739283073505,-500.0,0.00011369,2]
[352736282,1739283073514,-2213.47,0.00011369,2]
[352736283,1739283073524,-500.0,0.00011369,2]
[352736284,1739283073533,-1085.29,0.00011369,2]
[352736285,1739283073542,-2309.34,0.00011369,2]
[352736286,1739283073553,-7282.99,0.00011369,2]
[352736287,1739283073562,-1952.41,0.00011369,2]
[352736288,1739283073571,-701.48,0.00011369,2]
[352736289,1739283073580,-1931.94,0.00011369,2]
[352736290,1739283073589,-500.0,0.00011369,2]
[352736291,1739283073598,-500.0,0.00011369,2]
[352736292,1739283073607,-500.0,0.00011369,2]
[352736293,1739283073621,-5326.26,0.00011369,2]
[352736294,1739283073630,-500.0,0.00011369,2]
[352736295,1739283073639,-3327.15,0.00011369,2]
[352736296,1739283073649,-1259.82,0.00011369,2]
[352736297,1739283073658,-500.0,0.00011369,2]
[352736298,1739283073667,-667.96,0.00011369,2]
[352736299,1739283073676,-500.0,0.00011369,2]
[352736300,1739283073686,-3450.17,0.00011369,2]
[352736301,1739283073695,-500.0,0.00011369,2]
[352736302,1739283073706,-1704.66,0.00011369,2]
[352736303,1739283073715,-500.0,0.00011369,2]
[352736304,1739283073724,-500.0,0.00011369,2]
[352736305,1739283073733,-2127.38,0.00011369,2]
[352736306,1739283073742,-500.0,0.00011369,2]
[352736307,1739283073752,-500.0,0.00011369,2]
[352736308,1739283073761,-500.0,0.00011369,2]
[352736309,1739283073771,-1476.79,0.00011369,2]
[352736310,1739283073780,-1839.16,0.00011369,2]
[352736311,1739283073789,-889.84,0.00011369,2]
[352736312,1739283073801,-2565.16,0.00011369,2]
[352736313,1739283073810,-500.0,0.00011369,2]
[352736314,1739283073819,-2467.78,0.00011369,2]
[352736315,1739283073828,-500.0,0.00011369,2]
[352736316,1739283073838,-1657.8,0.00011369,2]
[352736317,1739283073847,-683.49,0.00011369,2]
[352736318,1739283074003,-500.0,0.00011369,2]
[352736319,1739283074012,-500.0,0.00011369,2]
[352736320,1739283074022,-1036.17,0.00011369,2]
[352736321,1739283074032,-2953.99,0.00011369,2]
[352736322,1739283074041,-500.0,0.00011369,2]
[352736323,1739283074051,-500.0,0.00011369,2]
[352736324,1739283074061,-2380.39,0.00011369,2]
[352736325,1739283074070,-1433.77,0.00011369,2]
[352736326,1739283074079,-1071.62,0.00011369,2]
[352736327,1739283074089,-1274.15,0.00011369,2]
[352736328,1739283074099,-500.0,0.00011369,2]
[352736329,1739283074108,-855.01,0.00011369,2]
[352736330,1739283074118,-1027.27,0.00011369,2]
[352736331,1739283074128,-1213.71,0.00011369,2]
[352736332,1739283074138,-500.0,0.00011369,2]
[352736333,1739283074147,-500.0,0.00011369,2]
[352736334,1739283074157,-500.0,0.00011369,2]
[352736335,1739283074166,-2875.82,0.00011369,2]
[352736336,1739283074175,-727.11,0.00011369,2]
[352736337,1739283074185,-500.0,0.00011369,2]
[352736338,1739283074195,-713.14,0.00011369,2]
[352736339,1739283074204,-1743.04,0.00011369,2]
[352736340,1739283074213,-2037.92,0.00011369,2]
[352736341,1739283074223,-2384.33,0.00011369,2]
[352736342,1739283074232,-639.83,0.00011369,2]
[352736343,1739283074241,-1210.9,0.00011369,2]
[352736344,1739283074251,-3335.18,0.00011369,2]
[352736345,1739283074260,-754.87574914,0.00011391,2]
[352736346,1739283074269,-152.68,0.000114,2]
[352736347,1739283074279,-500.0,0.00011429,2]
[352736348,1739283074290,-4948.5091115,0.00011497,2]
[352736349,1739283074300,-1753.0944328,0.00011497,2]
[352736350,1739283074309,-3250.076618,0.00011497,2]
[352736351,1739283074318,-350.6188865,0.00011497,2]
[352736352,1739283074327,-2214.2608784,0.00011497,2]
[352736353,1739283074335,-536.3199979,0.00011497,2]
[352736354,1739283074344,-563.1223381,0.00011497,2]
[352736355,1739283074353,-542.2257928,0.00011497,2]
[352736356,1739283074362,-754.87574914,0.00011497,2]
[352736357,1739283074372,-524.64,0.00011499,2]
[352736358,1739283074381,-1114.15,0.000115,2]
[352736359,1739283074391,-1907.79,0.000115,2]
[352736360,1739283074399,-500.0,0.000115,2]
[352736361,1739283074409,-2042.7,0.000115,2]
[352736362,1739283074418,-2608.79,0.000115,2]
[352736363,1739283074427,-606.0,0.000115,2]
[352736364,1739283074436,-500.0,0.00011505,2]
[352736365,1739283074445,-500.0,0.00011505,2]
[352736366,1739283074455,-151.0,0.00011506,2]
[352736367,1739283074464,-500.0,0.00011506,2]
[352736368,1739283074473,-500.0,0.00011506,2]
[352736369,1739283074483,-500.0,0.00011506,2]
[352736370,1739283074492,-290.56844793,0.00011506,2]
[352736371,1739283074501,-436.84496216,0.00011506,2]
[352736372,1739283074510,-500.0,0.00011506,2]
[352736373,1739283074520,-500.0,0.00011506,2]
[352736374,1739283074529,-500.0,0.00011506,2]
[352736375,1739283074538,-500.0,0.00011506,2]
[352736376,1739283074550,-500.0,0.00011506,2]
[352736377,1739283074558,-500.0,0.00011506,2]
[352736378,1739283074568,-500.0,0.00011506,2]
[352736379,1739283074577,-500.0,0.00011506,2]
[352736380,1739283074586,-500.0,0.00011506,2]
[352736381,1739283074595,-500.0,0.00011506,2]
[352736382,1739283074605,-500.0,0.00011506,2]
[352736383,1739283074615,-545.31,0.00011506,2]
[352736384,1739283074624,-500.0,0.00011506,2]
[352736385,1739283074638,-500.0,0.00011506,2]
[352736386,1739283074647,-500.0,0.00011506,2]
[352736387,1739283074657,-500.0,0.00011506,2]
[352736388,1739283074667,-151.0,0.00011506,2]
[352736389,1739283074677,-500.0,0.00011506,2]
[352736390,1739283074687,-500.0,0.00011506,2]
[352736391,1739283074696,-500.0,0.00011506,2]
[352736392,1739283074705,-500.0,0.00011506,2]
[352736393,1739283074714,-500.0,0.00011506,2]
[352736394,1739283074724,-623.89,0.00011506,2]
[352736395,1739283074733,-2289.514115,0.00011506,2]
[352736396,1739283074742,-500.0,0.00011506,2]
[352736397,1739283074751,-500.0,0.00011506,2]
[352736398,1739283074760,-500.0,0.00011506,2]
[352736399,1739283074770,-912.071354,0.00011506,2]
[352736400,1739283074779,-562.39,0.00011506,2]
[352736401,1739283074788,-500.0,0.00011506,2]
[352736402,1739283074798,-500.0,0.00011506,2]
[352736403,1739283074807,-500.0,0.00011506,2]
[352736404,1739283074816,-1335.42,0.00011506,2]
[352736405,1739283074826,-500.0,0.00011506,2]
[352736406,1739283074835,-500.0,0.00011506,2]
[352736407,1739283074846,-500.0,0.00011506,2]
[352736408,1739283074855,-255.91566008,0.00011506,2]
[352736409,1739283074865,-500.0,0.00011506,2]
[352736410,1739283074874,-500.0,0.00011506,2]
[352736411,1739283074884,-500.0,0.00011506,2]
[352736412,1739283074893,-1026.73,0.00011506,2]
[352736413,1739283074903,-563.01458737,0.00011506,2]
[352736414,1739283074913,-500.0,0.00011506,2]